[Event "XXXVIII Benasque Open 2018"]
[Site "Benasque"]
[Date "2018.07.12"]
[Round "8"]
[White "Baklan, Vladimir"]
[Black "Cruz Lledo, Pablo"]
[Result "1-0"]
[ECO "B12"]
[WhiteElo "2595"]
[BlackElo "2443"]
[Annotator "ChessBase"]
[PlyCount "81"]
[EventDate "2018.07.05"]
[EventType "swiss"]
[EventCountry "ESP"]
[SourceTitle "playchess.com"]
[Source "ChessBase"]
[SourceQuality "1"]
[TimeControl "5400+30"]

1. e4 {[%emt 0:00:00]} c6 {[%emt 0:00:00]} 2. d4 {[%emt 0:00:00]} d5 {[%emt 0:00:00]} 3. e5 {[%emt 0:00:00]} Bf5 {[%emt 0:00:00]} 4. Be2 {[%emt 0:01:10]} e6 {[%emt 0:00:00]} 5. Nf3 {[%emt 0:00:13]} h6 {[%emt 0:00:35]} 6. O-O {[%emt 0:01:05]} Ne7 {[%emt 0:00:17]} 7. c3 {[%emt 0:00:07]} Nd7 {[%emt 0:00:09]} 8. Na3 {[%emt 0:00:19]} a5 {[%emt 0:01:30]} 9. Nc2 {[%emt 0:02:08]} g5 {[%emt 0:00:11]} 10. Nfe1 {[%emt 0:05:48]} Qc7 {[%emt 0:06:08]} 11. Bh5 {[%emt 0:03:10]} Bg6 {[%emt 0:24:58]} 12. f4 gxf4 {[%emt 0:01:19]} 13. Nd3 {[%emt 0:03:37]} Bg7 {[%emt 0:07:09]} 14. Nxf4 {[%emt 0:02:40]} Nf8 {[%emt 0:00:05]} 15. b3 {[%emt 0:14:59]} c5 {[%emt 0:04:48]} 16. Na3 {[%emt 0:14:33]} cxd4 {[%emt 0:03:35]} 17. cxd4 {[%emt 0:01:46]} Qc3 {[%emt 0:00:47]} 18. Bxg6 {[%emt 0:00:23]} Nfxg6 {[%emt 0:07:39]} 19. Rb1 {[%emt 0:03:45]} Qb4 {[%emt 0:13:32]} 20. Nh5 {[%emt 0:01:15]} O-O {[%emt 0:07:10]} 21. Nc2 {[%emt 0:05:15]} Qb6 {[%emt 0:00:15]} 22. Ne3 {[%emt 0:15:26]} Nc6 {[%emt 0:04:32]} 23. Nxg7 {[%emt 0:00:24]} Kxg7 {[%emt 0:04:01]} 24. Ng4 {[%emt 0:00:06]} Rh8 {[%emt 0:00:55]} 25. Be3 {[%emt 0:01:30]} h5 {[%emt 0:04:21]} 26. Qf3 {[%emt 0:00:09]} f5 {[%emt 0:00:21]} 27. exf6+ {[%emt 0:04:17]} Kf7 {[%emt 0:00:02]} 28. Nf2 {[%emt 0:00:27]} Rag8 {[%emt 0:02:00]} 29. Qh3 {[%emt 0:01:44]} Nxd4 {[%emt 0:02:20]} 30. Rbe1 {[%emt 0:01:48]} Ne5 {[%emt 0:00:53]} 31. Kh1 {[%emt 0:00:16]} Ng4 {[%emt 0:00:44]} 32. Nd3 {[%emt 0:01:18]} e5 {[%emt 0:01:42]} 33. Bg1 {[%emt 0:00:42]} Qd6 {[%emt 0:01:35]} 34. Nxe5+ {[%emt 0:00:39]} Nxe5 {[%emt 0:00:02]} 35. Bxd4 {[%emt 0:00:07]} Nc6 {[%emt 0:00:25]} 36. Bc5 {[%emt 0:00:59]} Qxc5 {[%emt 0:02:32]} 37. Qe6+ {[%emt 0:00:08]} Kg6 {[%emt 0:00:02]} 38. f7+ {[%emt 0:00:18]} Kh7 {[%emt 0:00:58]} 39. fxg8=Q+ {[%emt 0:00:14]} Rxg8 {[%emt 0:00:06]} 40. Rf7+ {[%emt 0:00:08]} Rg7 {[%emt 0:00:09]} 41. Qf5+ {[%emt 0:00:08]} 1-0

[Event "XXXVIII Benasque Open 2018"]
[Site "Benasque"]
[Date "2018.07.12"]
[Round "8"]
[White "Kharitonov, Alexandr"]
[Black "Banusz, Tamas"]
[Result "1/2-1/2"]
[ECO "D45"]
[WhiteElo "2564"]
[BlackElo "2607"]
[Annotator "RC"]
[PlyCount "34"]
[EventDate "2018.07.05"]
[EventType "swiss"]
[EventCountry "ESP"]
[SourceTitle "playchess.com"]
[Source "ChessBase"]
[SourceQuality "1"]
[TimeControl "5400+30"]

1. d4 {[%emt 0:00:04]} d5 {[%emt 0:03:39]} 2. c4 {[%emt 0:00:07]} c6 {[%emt 0:00:06]} 3. Nc3 {[%emt 0:00:22]} Nf6 {[%emt 0:00:05]} 4. e3 {[%emt 0:00:23]} e6 {[%emt 0:00:07]} 5. Nf3 {[%emt 0:00:27]} a6 {[%emt 0:00:04]} 6. Qc2 {[%emt 0:01:50]} c5 {[%emt 0:00:29]} 7. cxd5 {[%emt 0:00:34]} exd5 {[%emt 0:00:05]} 8. Be2 {[%emt 0:00:50]} Be6 {[%emt 0:00:05]} 9. O-O {[%emt 0:00:32]} Nc6 {[%emt 0:00:03]} 10. Rd1 {[%emt 0:01:17]} Nb4 {[%emt 0:00:07]} 11. Qd2 {[%emt 0:00:26]} Ne4 {[%emt 0:00:07]} 12. Nxe4 {[%emt 0:00:23]} dxe4 {[%emt 0:00:05]} 13. a3 {[%emt 0:00:14]} exf3 {[%emt 0:00:11]} 14. Bxf3 {[%emt 0:00:05]} Nc6 {[%emt 0:00:05]} 15. d5 {[%emt 0:00:13]} Ne5 {[%emt 0:00:05]} 16. dxe6 {[%emt 0:00:17]} Nxf3+ {[%emt 0:00:07]} 17. gxf3 {[%emt 0:00:05]} fxe6 {[%emt 0:00:08]} 1/2-1/2

[Event "XXXVIII Benasque Open 2018"]
[Site "Benasque"]
[Date "2018.07.12"]
[Round "8"]
[White "Alvarado Diaz, Alejandro"]
[Black "Chigaev, Maksim"]
[Result "0-1"]
[ECO "A00"]
[WhiteElo "2402"]
[BlackElo "2582"]
[Annotator "RC"]
[PlyCount "48"]
[EventDate "2018.07.05"]
[EventType "swiss"]
[EventCountry "ESP"]
[SourceTitle "playchess.com"]
[Source "ChessBase"]
[SourceQuality "1"]
[TimeControl "5400+30"]

1. g3 {[%emt 0:00:19]} g6 {[%emt 0:00:00]} 2. Bg2 {[%emt 0:00:44]} Bg7 {[%emt 0:00:00]} 3. c3 {[%emt 0:02:09]} d6 {[%emt 0:00:28]} 4. d4 {[%emt 0:01:38]} Nf6 {[%emt 0:00:11]} 5. Nf3 {[%emt 0:01:36]} O-O {[%emt 0:00:11]} 6. O-O {[%emt 0:00:08]} Nbd7 {[%emt 0:05:59]} 7. Qc2 {[%emt 0:06:51]} e5 {[%emt 0:01:18]} 8. dxe5 {[%emt 0:02:11]} dxe5 {[%emt 0:00:10]} 9. Bg5 {[%emt 0:00:30]} h6 {[%emt 0:00:13]} 10. Bxf6 {[%emt 0:00:17]} Qxf6 {[%emt 0:00:11]} 11. Nbd2 {[%emt 0:03:28]} Qe7 {[%emt 0:00:15]} 12. e4 {[%emt 0:00:40]} Nb6 {[%emt 0:00:55]} 13. Rfe1 {[%emt 0:03:22]} a5 {[%emt 0:01:21]} 14. Nf1 {[%emt 0:01:27]} c6 {[%emt 0:06:35]} 15. Ne3 {[%emt 0:01:05]} h5 {[%emt 0:00:53]} 16. Nd2 {[%emt 0:14:25]} Be6 {[%emt 0:03:19]} 17. Bf1 {[%emt 0:03:06]} Bh6 {[%emt 0:05:26]} 18. Ndc4 {[%emt 0:02:09]} Nxc4 {[%emt 0:00:30]} 19. Nxc4 {[%emt 0:00:12]} Qc5 {[%emt 0:00:12]} 20. Ne3 {[%emt 0:02:54]} Rfd8 {[%emt 0:02:12]} 21. b3 {[%emt 0:01:33]} Rd7 {[%emt 0:02:58]} 22. a3 {[%emt 0:11:22]} Rad8 {[%emt 0:08:36]} 23. b4 {[%emt 0:01:12]} Qa7 {[%emt 0:00:06]} 24. Qa4 {[%emt 0:03:00]} b5 {[%emt 0:01:00]} 0-1

[Event "XXXVIII Benasque Open 2018"]
[Site "Benasque"]
[Date "2018.07.12"]
[Round "8"]
[White "Lalic, Bogdan"]
[Black "Santos Ruiz, Miguel"]
[Result "1/2-1/2"]
[ECO "D43"]
[WhiteElo "2394"]
[BlackElo "2531"]
[Annotator "RC"]
[PlyCount "32"]
[EventDate "2018.07.05"]
[EventType "swiss"]
[EventCountry "ESP"]
[SourceTitle "playchess.com"]
[Source "ChessBase"]
[SourceQuality "1"]
[TimeControl "5400+30"]

1. d4 {[%emt 0:06:31]} Nf6 {[%emt 0:00:00]} 2. c4 {[%emt 0:02:08]} e6 {[%emt 0:00:00]} 3. Nf3 {[%emt 0:00:07]} d5 {[%emt 0:00:00]} 4. Nc3 {[%emt 0:00:06]} c6 {[%emt 0:00:00]} 5. Bg5 {[%emt 0:00:35]} h6 {[%emt 0:00:00]} 6. Bxf6 {[%emt 0:00:07]} Qxf6 {[%emt 0:00:01]} 7. Qc2 {[%emt 0:00:12]} Nd7 {[%emt 0:00:08]} 8. e4 {[%emt 0:00:12]} dxe4 {[%emt 0:00:06]} 9. Qxe4 {[%emt 0:00:09]} g6 {[%emt 0:00:05]} 10. Bd3 {[%emt 0:00:15]} Bg7 {[%emt 0:00:46]} 11. O-O {[%emt 0:00:08]} O-O {[%emt 0:00:34]} 12. Rfe1 {[%emt 0:02:16]} c5 {[%emt 0:12:30]} 13. d5 {[%emt 0:00:09]} e5 {[%emt 0:01:01]} 14. Qe2 {[%emt 0:07:09]} Qe7 {[%emt 0:07:23]} 15. d6 {[%emt 0:02:48]} Qxd6 {[%emt 0:00:15]} 16. Rad1 {[%emt 0:00:04]} Qb8 {[%emt 0:23:32]} 1/2-1/2